bitfinex/quotes_ETHUSD_20251214
["timestamp","ask_amount","ask_price","bid_price","bid_amount"]
[1765746472045,0.1992,3081.0,3080.3,8.74318359]
[1765746472218,0.4814,3080.9,3080.3,11.98962062]
[1765746473143,0.001,3081.2,3080.4,0.98597929]
[1765746473347,0.4824,3081.2,3080.4,0.98597929]
[1765746474444,0.4824,3081.2,3080.5,6.49245252]
[1765746474746,0.4824,3081.2,3080.6,0.74784318]
[1765746475041,0.4824,3081.2,3080.7,0.514]
[1765746476543,0.4824,3081.2,3080.8,3.24591015]
[1765746476847,0.001,3081.2,3080.8,6.4918203]
[1765746477026,0.4639,3081.2,3080.9,1.5424252]
[1765746477529,0.4639,3081.2,3081.0,0.514]
[1765746477930,0.001,3081.2,3081.0,0.514]
[1765746478648,0.4709,3081.1,3081.0,3.75969944]
[1765746478817,0.4709,3081.1,3080.3,0.002]
[1765746479022,0.9338,3081.0,3080.8,3.24583618]
[1765746479327,0.9338,3081.0,3080.9,3.24580479]
[1765746479530,0.001,3081.2,3081.0,3.24569393]
[1765746480050,0.001,3081.2,3081.1,0.405504]
[1765746480659,0.001,3081.2,3081.1,3.6510981]
[1765746480858,0.001,3081.2,3081.1,4.3921773]
[1765746482562,0.001,3081.2,3081.1,4.9061773]
[1765746482766,0.001,3081.2,3081.1,5.48665259]
[1765746483363,0.001,3081.2,3081.1,23.86001753]
[1765746483537,0.001,3081.2,3081.1,19.61259859]
[1765746483728,0.001,3081.2,3081.1,16.21006259]
[1765746484050,0.001,3081.2,3081.1,14.97256259]
[1765746484554,0.001,3081.2,3081.1,17.83006259]
[1765746484759,0.001,3081.2,3081.1,12.75850359]
[1765746485566,0.001,3081.2,3081.1,19.82093759]
[1765746486433,0.001,3081.2,3081.1,20.17786359]
[1765746486638,0.001,3081.2,3081.1,19.85337759]
[1765746487538,0.001,3081.2,3081.1,39.45651112]
[1765746490953,0.001,3081.2,3081.1,38.94251112]
[1765746491123,0.001,3081.2,3081.1,39.45651112]
[1765746494156,0.001,3081.8,3081.2,3.839]
[1765746494461,0.001,3081.8,3081.5,0.405504]
[1765746494641,0.001,3081.8,3081.6,0.514]
[1765746495736,0.001,3081.8,3081.7,3.82543748]
[1765746495941,0.001,3081.8,3081.7,7.66443748]
[1765746497858,0.001,3081.8,3081.7,8.17843748]
[1765746498062,0.001,3081.8,3081.7,8.93454858]
[1765746501065,0.001,3081.8,3081.7,8.42054858]
[1765746501268,0.001,3081.8,3081.7,8.93454858]
[1765746502541,0.4719,3081.8,3081.7,8.42054858]
[1765746502865,0.9348,3081.8,3081.7,8.82605258]
[1765746503067,0.9348,3081.8,3081.7,9.34005258]
[1765746503262,0.9348,3081.8,3081.7,8.82605258]
[1765746503470,0.9348,3081.8,3081.7,13.03463993]
[1765746503637,0.4719,3081.8,3081.7,13.03463993]
[1765746504837,0.9348,3081.8,3081.7,13.03463993]
[1765746506667,0.4719,3081.8,3081.7,13.03463993]
[1765746507069,0.9364,3081.8,3081.7,13.03463993]
[1765746509066,0.9364,3081.8,3081.7,12.52063993]
[1765746509267,0.9364,3081.8,3081.7,12.27852883]
[1765746509476,0.9364,3081.8,3081.7,11.76452883]
[1765746509784,0.9364,3081.8,3081.7,7.59796219]
[1765746510145,0.9364,3081.8,3081.7,7.08396219]
[1765746510345,0.9364,3081.8,3081.7,7.59796219]
[1765746511574,0.9364,3081.8,3081.7,9.05172482]
[1765746511775,0.9364,3081.8,3081.7,7.59796219]
[1765746511975,0.9364,3081.8,3081.7,3.75896219]
[1765746519889,0.9364,3081.8,3081.6,3.82554278]
[1765746520090,0.001,3081.8,3081.7,0.514]
[1765746520890,0.4825,3081.8,3081.7,0.514]
[1765746521083,0.947,3081.8,3081.7,0.514]
[1765746521694,0.947,3081.8,3081.6,3.82554278]
[1765746521989,0.946,3081.7,3081.6,3.82554278]
[1765746522188,0.946,3081.7,3081.6,4.33954278]
[1765746528684,0.001,3081.8,3081.6,5.48190473]
[1765746529186,0.4655,3081.8,3081.6,5.48190473]
[1765746529388,0.4815,3081.7,3081.6,5.48190473]
[1765746529589,0.4815,3081.7,3081.6,4.33954278]
[1765746529791,0.946,3081.7,3081.6,4.33954278]
[1765746534899,0.946,3081.7,3081.6,4.33854278]
[1765746536706,0.946,3081.7,3081.6,3.82554278]
[1765746536894,0.946,3081.7,3081.6,4.33854278]
[1765746538029,0.946,3081.7,3081.6,3.24506749]
[1765746538311,0.946,3081.7,3081.6,3.75806749]
[1765746541413,0.001,3081.8,3081.7,0.405504]
[1765746541777,0.001,3081.8,3081.7,4.244504]
[1765746542981,0.001,3081.8,3081.7,4.757504]
[1765746543210,0.001,3081.8,3081.7,8.00246619]
[1765746543532,0.001,3081.8,3081.7,9.19725203]
[1765746548319,0.001,3081.8,3081.7,9.14725203]
[1765746557424,0.4925,3081.8,3081.7,7.08396219]
[1765746557721,0.9549,3081.8,3081.7,7.59696219]
[1765746561525,0.9549,3081.8,3081.7,3.839]
[1765746561704,0.9549,3081.8,3081.7,7.59696219]
[1765746565528,0.9549,3081.8,3081.7,3.75796219]
[1765746573051,0.4925,3081.8,3081.7,3.75796219]
[1765746573423,0.9557,3081.8,3081.7,3.75796219]
[1765746581956,0.9557,3081.8,3081.7,3.24496219]
[1765746582254,0.9557,3081.8,3081.7,3.75796219]
[1765746587453,0.9557,3081.8,3081.6,0.002]
[1765746587751,0.9572,3081.7,3081.6,0.002]
[1765746590235,2.35731202,3081.7,3081.6,0.002]
[1765746590440,5.60227421,3081.7,3081.6,0.002]
[1765746590757,2.35731202,3081.7,3081.6,0.002]
[1765746592834,5.60227421,3081.7,3081.6,0.002]
[1765746593040,2.35731202,3081.7,3081.6,0.002]
[1765746593864,5.60227421,3081.7,3081.6,0.002]
[1765746594336,2.35731202,3081.7,3081.6,0.002]
[1765746594843,5.60227421,3081.7,3081.6,0.002]
[1765746595342,2.35731202,3081.7,3081.6,0.002]
[1765746598043,2.41223045,3081.7,3081.6,0.002]
[1765746600469,1.98644018,3081.7,3081.6,0.002]
[1765746600673,0.001,3081.8,3081.6,0.002]
[1765746601468,0.001,3081.8,3081.6,3.24706749]
[1765746602564,0.4629,3081.7,3081.6,3.24706749]
[1765746602738,0.001,3081.8,3081.6,3.76006749]
[1765746603139,0.001,3081.8,3081.6,4.4607825]
[1765746603545,0.001,3081.8,3081.7,4.244504]
[1765746603754,0.001,3081.8,3081.7,4.82497929]
[1765746604156,0.001,3081.8,3081.7,5.73677929]
[1765746604558,0.001,3081.8,3081.7,0.98597929]
[1765746604764,0.001,3081.8,3081.7,3.14908894]
[1765746605338,0.001,3081.8,3081.7,28.60249913]
[1765746605653,0.001,3081.8,3081.7,19.7129672]
[1765746605849,0.001,3081.8,3081.7,19.26867613]
[1765746606081,0.001,3082.0,3081.9,0.405504]
[1765746606371,0.001,3082.5,3081.9,0.405504]
[1765746606372,0.001,3082.5,3082.4,0.98597929]
[1765746606565,0.001,3082.5,3082.4,8.30983308]
[1765746606964,0.001,3082.5,3082.4,8.43964862]
[1765746608391,0.001,3082.5,3082.4,8.56987389]
[1765746609387,0.001,3082.5,3082.4,4.8730201]
[1765746609689,0.001,3082.5,3082.4,5.57373511]
[1765746614181,0.001,3082.5,3082.4,5.06073511]
[1765746614379,0.001,3082.5,3082.4,5.44391957]
[1765746614989,0.001,3082.5,3082.4,3.94494028]
[1765746615184,0.9198,3082.5,3082.4,3.75722527]
[1765746617192,0.4639,3082.5,3082.4,3.75722527]
[1765746617898,0.9198,3082.5,3082.4,3.75722527]
[1765746619480,0.9198,3082.5,3082.2,0.513]
[1765746619679,0.4629,3082.3,3082.2,3.75734937]
[1765746620181,0.9188,3082.3,3082.2,3.75734937]
[1765746621503,0.9188,3082.3,3082.2,0.513]
[1765746621691,0.9188,3082.3,3082.2,3.75743579]
[1765746623178,0.9188,3082.3,3082.2,0.513]
[1765746623906,0.9188,3082.3,3082.2,3.75743579]
[1765746624887,0.9188,3082.3,3082.2,0.513]
[1765746625308,0.9188,3082.3,3082.2,3.75743579]
[1765746635019,0.9198,3082.3,3082.2,3.75743579]
[1765746637013,0.001,3082.3,3082.2,3.75743579]
[1765746637322,0.001,3082.3,3082.2,4.45784264]
[1765746640313,0.001,3082.3,3082.2,4.86334664]
[1765746640507,0.001,3082.3,3082.2,8.70234664]
[1765746641688,0.001,3082.3,3082.2,8.83218114]
[1765746642618,0.001,3082.3,3082.2,9.41265643]
[1765746644936,0.001,3082.3,3082.2,18.95428343]
[1765746646920,0.001,3082.3,3082.2,11.99033743]
[1765746648828,0.001,3082.3,3082.2,11.47733743]
[1765746649002,0.001,3082.3,3082.2,11.99033743]
[1765746650131,0.001,3082.3,3082.2,9.28282193]
[1765746650628,0.001,3082.3,3082.2,11.33372793]
[1765746650830,0.001,3082.3,3082.2,9.28282193]
[1765746651019,0.001,3082.3,3082.2,11.33134093]
[1765746651333,0.001,3082.3,3082.2,9.28282193]
[1765746652029,0.001,3082.3,3082.2,11.32529193]
[1765746652233,0.001,3082.3,3082.2,11.32382393]
[1765746652527,0.001,3082.3,3082.2,9.28282193]
[1765746653127,0.001,3082.3,3082.2,12.16466193]
[1765746655030,0.001,3082.3,3082.2,8.76982193]
[1765746655332,0.001,3082.3,3082.2,9.28282193]
[1765746660636,0.001,3082.3,3082.2,12.97546178]
[1765746670642,0.001,3082.3,3082.2,22.29883278]
[1765746670947,0.001,3082.3,3082.2,20.47007578]
[1765746671519,0.001,3082.3,3082.2,21.79044978]
[1765746671850,0.001,3082.3,3082.2,20.67317078]
[1765746672554,0.001,3082.3,3082.2,21.37804478]
[1765746672719,0.001,3082.3,3082.2,21.05367078]
[1765746673633,0.001,3082.3,3082.2,21.37804478]
[1765746673952,0.001,3082.3,3082.2,21.05367078]
[1765746674649,0.001,3082.3,3082.2,21.37804478]
[1765746674826,0.001,3082.3,3082.2,21.05367078]
[1765746675426,0.001,3082.5,3082.4,5.474656]
[1765746675626,0.001,3082.5,3082.4,11.20386263]
[1765746675840,0.001,3082.5,3082.4,6.45908463]
[1765746677451,0.47,3082.5,3082.4,6.45908463]
[1765746677655,0.9369,3082.5,3082.4,6.97208463]
[1765746681259,0.9369,3082.5,3082.4,10.81008463]
[1765746686756,0.001,3082.5,3082.4,10.81008463]
[1765746688173,0.001,3082.5,3082.4,30.56125848]
[1765746688337,0.001,3082.5,3082.4,24.66900963]
[1765746688653,0.001,3082.5,3082.4,15.82129063]
[1765746689242,0.001,3082.5,3082.4,16.99891563]
[1765746691167,0.001,3082.5,3082.4,10.81008463]
[1765746691372,0.001,3082.5,3082.4,17.32329163]
[1765746691842,0.001,3082.5,3082.4,16.99891563]
[1765746692238,0.001,3082.5,3082.4,17.01726963]
[1765746692937,0.001,3082.5,3082.4,15.57573663]
[1765746693137,0.001,3082.5,3082.4,10.81008463]
[1765746693338,0.001,3082.5,3082.4,15.57573663]
[1765746694469,0.001,3082.5,3082.4,15.59300763]
[1765746695467,0.001,3082.5,3082.4,10.81008463]
[1765746695681,0.001,3082.5,3082.4,15.59300763]
[1765746696461,0.001,3082.5,3082.4,18.00569343]
[1765746696655,0.001,3082.5,3082.4,14.50177043]
[1765746696966,0.001,3082.5,3082.4,17.18194543]
[1765746697566,0.001,3082.5,3082.4,14.50177043]
[1765746698564,0.9362,3082.5,3082.4,14.50177043]
[1765746698968,0.9362,3082.5,3082.4,13.98877043]
[1765746699171,0.9362,3082.5,3082.4,14.50177043]
[1765746699341,0.9362,3082.5,3082.4,14.50256326]
[1765746701267,0.4802,3082.5,3082.4,14.50256326]
[1765746702365,0.001,3082.5,3082.4,14.50256326]
[1765746703066,0.4802,3082.5,3082.4,14.50256326]
[1765746703967,0.001,3082.5,3082.4,14.50256326]
[1765746704659,0.4802,3082.5,3082.4,14.50256326]
[1765746704970,0.9362,3082.5,3082.4,14.50256326]
[1765746705969,0.9362,3082.5,3082.4,13.98956326]
[1765746706176,0.9362,3082.5,3082.4,7.08222527]
[1765746706376,0.9362,3082.5,3082.4,0.513]
[1765746706857,0.9362,3082.5,3082.4,3.75722527]
[1765746707685,0.9362,3082.5,3082.4,3.24422527]
[1765746707985,0.9362,3082.5,3082.4,3.75722527]
[1765746709289,0.9362,3082.5,3082.3,3.84]
[1765746709577,0.9352,3082.4,3082.3,3.84]
[1765746709781,0.9352,3082.4,3082.3,7.08433053]
[1765746711183,0.4792,3082.4,3082.3,7.48983453]
[1765746711503,0.001,3082.5,3082.4,11.05067729]
[1765746711774,0.001,3082.5,3082.4,24.35204192]
[1765746711964,0.001,3083.0,3082.6,0.98597929]
[1765746712155,0.001,3083.0,3082.9,4.67845792]
[1765746712356,0.001,3083.0,3082.9,7.92215703]
[1765746712553,0.001,3083.0,3082.9,8.0519553]
[1765746720867,0.001,3083.0,3082.9,11.8899553]
[1765746721078,0.001,3083.0,3082.9,13.38799141]
[1765746721275,0.001,3083.0,3082.9,16.69800641]
[1765746723199,0.001,3083.0,3082.9,13.38799141]
[1765746723402,0.001,3083.0,3082.9,15.45544041]
[1765746724285,0.001,3083.0,3082.9,26.91801941]
[1765746724607,0.001,3083.0,3082.9,17.53896041]
[1765746725395,0.001,3083.0,3082.9,21.41799341]
[1765746725772,0.001,3083.2,3083.0,4.82297929]
[1765746726001,0.001,3083.2,3083.0,14.60314339]
[1765746726604,0.001,3083.2,3083.0,14.7329265]
[1765746727374,0.001,3083.2,3083.0,17.9765204]
[1765746727581,0.001,3083.2,3083.0,16.4196494]
[1765746727903,0.001,3083.2,3083.0,15.3682574]
[1765746728210,0.001,3083.2,3083.0,14.4146324]
[1765746728385,0.001,3083.2,3083.0,13.9316324]
[1765746729711,0.001,3083.2,3083.0,11.9140244]
[1765746730208,0.001,3083.2,3083.0,11.9160244]
[1765746730591,0.001,3083.2,3083.0,13.9662574]
[1765746730786,0.001,3083.2,3083.0,11.9160244]
[1765746730991,0.001,3083.2,3083.0,18.6710804]
[1765746731191,0.001,3083.2,3083.0,17.7578974]
[1765746731390,0.001,3083.2,3083.0,17.4335804]
[1765746733016,0.001,3083.2,3083.0,16.2188644]
[1765746733218,0.001,3083.2,3083.0,15.5204984]
[1765746733513,0.001,3083.2,3083.0,15.1737904]
[1765746733811,0.001,3083.2,3083.0,22.95793293]
[1765746734018,0.001,3083.2,3083.0,22.55231454]
[1765746734196,0.001,3083.2,3083.0,15.60528647]
[1765746734380,0.001,3083.2,3083.0,17.74628647]
[1765746734785,0.001,3083.2,3083.0,15.60528647]
[1765746736113,0.9842,3083.1,3083.0,7.21237701]
[1765746736421,0.9842,3083.1,3083.0,4.33906919]
[1765746737387,0.9842,3083.1,3083.0,0.002]
[1765746737807,0.9842,3083.1,3082.7,0.513]
[1765746738012,0.9842,3083.1,3082.7,0.013]
[1765746738013,0.4973,3082.8,3082.7,0.013]
[1765746738419,0.9832,3082.8,3082.7,0.013]
[1765746740020,0.9832,3082.8,3082.5,0.002]
[1765746740209,0.335,3082.6,3082.5,0.002]
[1765746740621,0.8209,3082.6,3082.5,0.002]
[1765746743031,0.6407,3083.0,3082.5,0.002]
[1765746743329,0.6407,3083.0,3082.8,3.68926207]
[1765746743527,0.1548,3083.0,3082.9,0.513]
[1765746743687,0.1548,3083.0,3082.9,4.35]
[1765746743894,0.6521,3083.0,3082.9,4.35]
[1765746744104,1.138,3083.0,3082.9,4.35]
[1765746746494,1.138,3083.0,3082.9,7.59369911]
[1765746746918,0.6521,3083.0,3082.9,7.59369911]
[1765746747127,1.1185,3083.0,3082.9,4.35]
[1765746747497,1.1185,3083.0,3082.9,7.59369911]
[1765746749546,0.001,3083.4,3082.9,7.59369911]
[1765746749547,0.001,3084.0,3083.6,0.405504]
[1765746749825,0.001,3084.0,3083.0,0.75936991]
[1765746749826,0.6483,3083.9,3083.7,0.513]
[1765746750329,0.948,3083.8,3083.7,0.918504]
[1765746750711,0.948,3083.8,3083.7,1.866504]
[1765746751816,0.948,3083.8,3083.7,5.1093616]
[1765746754725,0.948,3083.8,3083.7,4.5963616]
[1765746754920,0.948,3083.8,3083.7,5.1093616]
[1765746756534,0.948,3083.8,3083.7,0.948]
[1765746756840,0.948,3083.8,3083.5,3.24305006]
[1765746757035,0.4901,3083.7,3083.5,3.24305006]
[1765746757209,0.3444,3083.6,3083.5,3.24305006]
[1765746758335,0.8345,3083.6,3083.5,3.24305006]
[1765746759349,0.3444,3083.6,3083.4,0.405504]
[1765746759553,0.673,3083.9,3083.4,1.29699716]
[1765746759722,0.673,3083.9,3083.5,0.405504]
[1765746759925,0.4901,3083.8,3083.5,0.405504]
[1765746761274,0.1829,3083.9,3083.7,0.405504]
[1765746761438,0.673,3083.9,3083.7,4.242504]
[1765746761611,0.4579,3083.8,3083.7,4.242504]
[1765746761814,0.949,3083.8,3083.7,4.242504]
[1765746762544,0.001,3083.8,3083.7,4.728904]
[1765746762744,0.001,3083.8,3083.7,6.7900978]
[1765746762919,0.001,3083.8,3083.7,5.79886923]
[1765746763119,0.001,3083.8,3083.7,6.75766923]
[1765746763442,0.4589,3083.8,3083.7,5.35088984]
[1765746763614,0.4589,3083.8,3083.7,4.22883689]
[1765746763813,0.949,3083.8,3083.7,4.74183689]
[1765746765511,0.94642316,3083.8,3083.7,4.74183689]
[1765746766547,0.45632316,3083.8,3083.7,4.74183689]
[1765746766945,0.001,3083.9,3083.8,0.98597929]
[1765746767446,0.4589,3083.9,3083.8,5.83285797]
[1765746767652,1.1345,3083.9,3083.8,4.22873173]
[1765746769820,1.1345,3083.9,3083.8,5.20207983]
[1765746770144,0.6444,3083.9,3083.8,5.20207983]
[1765746771150,0.4589,3083.9,3083.8,5.20207983]
[1765746771548,0.001,3083.9,3083.8,9.52547983]
[1765746771718,0.001,3083.9,3083.8,11.74224621]
[1765746772239,0.001,3083.9,3083.8,10.76889811]
[1765746779146,0.001,3083.9,3083.8,10.29649811]
[1765746779345,0.4607,3083.9,3083.8,8.06573173]
[1765746779866,0.001,3083.9,3083.8,8.06573173]
[1765746780163,0.001,3083.9,3083.8,8.52023173]
[1765746780534,0.001,3083.9,3083.8,12.21015807]
[1765746780735,0.001,3083.9,3083.8,12.66555807]
[1765746781059,0.001,3083.9,3083.8,10.6177733]
[1765746781357,0.001,3083.9,3083.8,10.1623733]
[1765746781731,0.001,3083.9,3083.8,10.6177733]
[1765746783648,0.001,3083.9,3083.8,10.6197733]
[1765746783849,0.001,3083.9,3083.8,9.7098733]
[1765746784361,0.001,3083.9,3083.8,10.1643733]
[1765746785270,0.001,3083.9,3083.8,9.7098733]
[1765746785471,0.001,3083.9,3083.8,10.1643733]
[1765746785660,0.001,3083.9,3083.8,10.6773733]
[1765746786159,0.4607,3083.9,3083.8,10.2228733]
[1765746788388,0.4607,3083.9,3083.8,8.58073173]
[1765746788541,1.0952,3083.9,3083.8,8.58073173]
[1765746792171,0.001,3083.9,3083.8,10.01662475]
[1765746792342,0.001,3083.9,3083.8,9.49063173]
[1765746799483,0.001,3083.9,3083.8,9.03523173]
[1765746799676,0.001,3083.9,3083.8,11.0874333]
[1765746805786,0.001,3083.9,3083.8,14.77566883]
[1765746808970,0.001,3084.0,3083.9,4.82197929]
[1765746809157,0.001,3084.0,3083.9,9.03172658]
[1765746812387,0.001,3084.0,3083.9,8.53792658]
[1765746812581,0.001,3084.0,3083.9,11.00606425]
[1765746812782,0.001,3084.0,3083.9,11.50316425]
[1765746814989,0.001,3084.2,3084.1,0.98597929]
[1765746815196,0.001,3084.2,3084.1,5.16371482]
[1765746815993,0.001,3084.2,3084.1,8.90325183]
[1765746816192,0.001,3084.2,3084.1,10.5000534]
[1765746816875,0.001,3084.2,3084.1,10.0029534]
[1765746817074,0.001,3084.2,3084.1,10.5000534]
[1765746817986,0.001,3084.2,3084.1,10.0029534]
[1765746819093,0.001,3084.2,3084.1,10.5000534]
[1765746820396,0.001,3084.2,3084.1,10.0029534]
[1765746820898,0.001,3084.2,3084.1,13.8379534]
[1765746821596,0.001,3084.2,3084.1,13.83772977]
[1765746822286,0.001,3084.2,3084.1,14.33482977]
[1765746827001,0.001,3084.2,3084.1,13.83772977]
[1765746830979,0.001,3084.2,3084.1,14.33482977]
[1765746831978,0.001,3084.2,3084.1,18.02284167]
[1765746832690,0.001,3084.3,3084.2,4.81997929]
[1765746832896,0.001,3084.3,3084.2,8.78671696]
[1765746833713,0.001,3084.3,3084.2,8.97791696]
[1765746834109,0.001,3084.3,3084.2,12.22024884]
[1765746834495,0.001,3084.3,3084.2,23.82324284]
[1765746836211,0.001,3084.4,3084.3,17.36700929]
[1765746836408,0.001,3084.4,3084.3,18.29728686]
[1765746836908,0.001,3084.4,3084.3,16.59340186]
[1765746837110,0.001,3084.4,3084.3,17.05020186]
[1765746837314,0.001,3084.4,3084.3,16.27169186]
[1765746837608,0.001,3084.4,3084.3,15.90859186]
[1765746837810,0.001,3084.4,3084.3,16.36539186]
[1765746838014,0.001,3084.4,3084.3,13.79939186]
[1765746838311,0.001,3084.4,3084.3,19.58099562]
[1765746838511,0.001,3084.4,3084.3,19.29307887]
[1765746839215,0.001,3084.4,3084.3,19.73045563]
[1765746839413,0.001,3084.4,3084.3,23.01164363]
[1765746839618,0.001,3084.4,3084.3,22.57426687]
[1765746840117,0.001,3084.4,3084.3,22.04907662]
[1765746840317,0.001,3085.1,3084.5,13.95404541]
[1765746840486,0.001,3085.1,3085.0,4.67399119]
[1765746840692,0.001,3085.1,3085.0,5.18599119]
[1765746840904,0.9361,3085.1,3085.0,5.18599119]
[1765746841319,0.9361,3085.1,3085.0,5.18405439]
[1765746841611,0.9361,3085.1,3085.0,6.12015439]
[1765746841815,0.9361,3085.1,3085.0,6.73216983]
[1765746842513,0.9361,3085.1,3085.0,5.16357037]
[1765746842717,0.9361,3085.1,3085.0,0.9361]
[1765746842916,0.9361,3085.1,3084.6,3.6860751]
[1765746843216,0.4602,3085.0,3084.8,3.24169332]
[1765746843590,0.6718,3084.9,3084.8,3.64719732]
[1765746844222,1.132,3084.9,3084.8,3.64719732]
[1765746846918,1.133,3084.9,3084.8,3.64719732]
[1765746853122,1.133,3084.9,3084.6,3.24190764]
[1765746853327,0.001,3084.9,3084.8,3.6860751]
[1765746853535,0.001,3084.9,3084.8,5.15965439]
[1765746853941,0.001,3084.9,3084.8,5.28937479]
[1765746855323,0.001,3084.9,3084.8,8.53107603]
[1765746856425,0.001,3084.9,3084.8,12.37107603]
[1765746856630,0.001,3084.9,3084.8,14.06166446]
[1765746862230,0.4759,3084.9,3084.8,14.06166446]
[1765746868254,0.4759,3084.9,3084.8,13.57406446]
[1765746871038,0.001,3084.9,3084.8,14.07336446]
[1765746873813,0.9296,3084.9,3084.8,13.57406446]
[1765746874808,0.4763,3084.9,3084.8,13.57406446]
[1765746875752,0.9296,3084.9,3084.8,13.57406446]
[1765746876635,0.9296,3084.9,3084.8,13.57463621]
[1765746879136,0.001,3084.9,3084.8,14.05493621]
[1765746879636,0.9296,3084.9,3084.8,13.57463621]
[1765746881444,0.9296,3084.9,3084.8,13.57459827]
[1765746886642,0.4763,3084.9,3084.8,13.57459827]
[1765746887039,0.001,3084.9,3084.8,8.19740093]
[1765746887247,0.001,3084.9,3084.8,8.70940093]
[1765746887625,0.4763,3084.9,3084.8,8.70940093]
[1765746890245,0.9296,3084.9,3084.8,8.70940093]
[1765746891549,0.4763,3084.9,3084.8,8.70940093]
[1765746891746,0.4763,3084.9,3084.8,10.30560274]
[1765746893250,0.001,3084.9,3084.8,10.65618234]
[1765746893454,0.001,3084.9,3084.8,11.11848234]
[1765746894248,0.001,3084.9,3084.8,10.65618234]
[1765746897051,0.001,3084.9,3084.8,10.17588234]
[1765746898635,0.4543,3084.9,3084.8,10.17588234]
[1765746898835,0.001,3084.9,3084.8,10.65988234]
[1765746901143,0.001,3084.9,3084.8,11.63562066]
[1765746901451,0.001,3085.3,3085.1,30.98597929]
[1765746901657,0.001,3085.3,3085.2,24.99115587]
[1765746901824,0.001,3085.3,3085.2,29.54341887]
[1765746902021,0.001,3085.3,3085.2,28.90812895]
[1765746902253,0.001,3085.3,3085.2,27.70302695]
[1765746902839,0.001,3085.3,3085.2,26.64525895]
[1765746903046,0.001,3085.3,3085.2,29.1531369]
[1765746903753,0.001,3085.3,3085.2,32.0236649]
[1765746904929,0.001,3085.3,3085.2,30.7861529]
[1765746905130,0.001,3085.3,3085.2,29.7816969]
[1765746905954,0.001,3085.3,3085.2,30.4298329]
[1765746906942,0.001,3086.2,3085.6,4.242504]
[1765746907139,0.001,3086.2,3085.6,13.07063973]
[1765746907341,0.001,3086.2,3085.6,13.55463973]
[1765746907645,0.4858,3086.2,3085.6,13.73643973]
[1765746907846,0.4848,3086.1,3085.6,13.73643973]
[1765746908044,0.001,3086.2,3085.6,13.25243973]
[1765746908452,0.4858,3086.2,3085.6,13.73643973]
[1765746909134,0.001,3086.2,3085.6,13.25243973]
[1765746909337,0.4848,3086.1,3085.6,13.25243973]
[1765746909861,0.001,3086.2,3085.6,13.73643973]
[1765746910061,0.4848,3086.1,3085.6,13.73643973]
[1765746912657,0.4848,3086.1,3085.6,13.73365476]
[1765746912832,0.001,3086.2,3085.6,9.41265476]
[1765746913036,0.001,3086.2,3085.7,34.83535605]
[1765746913234,0.001,3086.3,3086.2,12.95859729]
[1765746913435,0.001,3086.3,3086.2,13.95459729]
[1765746913660,0.001,3086.3,3086.2,18.16362799]
[1765746914049,0.001,3086.3,3086.2,17.67962799]
[1765746914261,0.4543,3086.3,3086.2,8.39483393]
[1765746914463,0.9391,3086.3,3086.2,3.82070599]
[1765746914670,0.9391,3086.3,3086.2,4.33270599]
[1765746914871,0.9391,3086.3,3086.2,4.73820999]
[1765746916857,0.9391,3086.3,3086.2,3.7522307]
[1765746917060,0.9391,3086.3,3085.2,3.68382394]
[1765746917267,0.4848,3086.2,3085.9,3.2405457]
[1765746917762,0.6341,3086.0,3085.8,3.2406481]
[1765746917974,0.3661,3085.9,3085.7,3.24071988]
[1765746918163,0.4848,3085.9,3085.7,3.24071988]
[1765746918474,0.4533,3085.8,3085.7,3.24071988]
[1765746918643,0.4533,3085.8,3085.7,3.64622388]
[1765746918843,0.9381,3085.8,3085.7,3.64622388]
[1765746919969,0.9391,3085.8,3085.7,3.64622388]
[1765746920566,0.9391,3085.8,3085.5,0.002]
[1765746920752,0.3661,3085.6,3085.5,0.002]
[1765746921158,0.8509,3085.6,3085.5,0.002]
[1765746945497,0.4571,3085.6,3085.5,0.002]
[1765746945687,0.9239,3085.6,3085.5,0.002]
[1765746949294,1.34055713,3085.6,3085.5,0.002]
[1765746952930,4.5814179,3085.6,3085.5,0.002]
[1765746953215,0.4571,3085.6,3085.5,0.002]
[1765746954716,0.9239,3085.6,3085.5,0.002]
[1765746957246,0.9314,3085.6,3085.5,0.002]
[1765746960460,0.001,3085.7,3085.6,0.405504]
[1765746960622,0.001,3085.7,3085.6,2.28239847]
[1765746960941,0.001,3085.7,3085.6,2.86287376]
[1765746961175,0.001,3085.7,3085.6,6.69987376]
[1765746962448,0.001,3085.7,3085.6,9.94073453]
[1765746963128,0.001,3085.7,3085.6,26.01207853]
[1765746963960,0.001,3086.2,3085.6,46.86883601]
[1765746964171,0.001,3086.2,3086.1,12.69969171]
[1765746964469,0.001,3086.2,3086.1,15.8705264]
[1765746964652,0.001,3086.2,3086.1,16.3629264]
[1765746964852,0.001,3086.2,3086.1,16.492577]
[1765746965052,0.001,3086.2,3086.1,20.254289]
[1765746965260,0.001,3086.2,3086.1,21.14598347]
[1765746965780,0.001,3086.2,3086.1,10.43210076]
[1765746965944,0.001,3086.2,3086.1,14.11934147]
[1765746966150,0.001,3086.2,3086.1,19.66608347]
[1765746966349,0.001,3087.1,3086.4,0.98597929]
[1765746966544,0.001,3087.1,3086.5,13.23503369]
[1765746966762,0.001,3087.1,3086.5,13.72743369]
[1765746968046,0.9325,3086.6,3086.5,7.65539105]
[1765746968378,0.9325,3086.6,3086.5,3.835]
[1765746968881,0.9325,3086.6,3086.5,7.07491576]
[1765746970486,0.9325,3086.6,3086.5,3.835]